[Event "Titled Tuesday Blitz February 01 A 2022"]
[White "Terry, Renato"]
[Black "Pranav, V"]
[WhiteFideId "3803457"]
[BlackFideId "25060783"]
[WhiteElo "2577"]
[BlackElo "2349"]
[Result "1/2-1/2"]
[Round "07"]
[TimeControl "180+1"]
[Date "2022.02.01"]
[WhiteClock "0:00:17"]
[BlackClock "0:00:38"]

1. d4 {[%clk 0:03:00]}  Nf6 {[%clk 0:02:59]} 2. Nf3 {[%clk 0:03:01]}  e6 {[%clk 0:02:58]} 3. c4 {[%clk 0:03:01]}  b6 {[%clk 0:02:58]} 4. g3 {[%clk 0:03:01]}  Ba6 {[%clk 0:02:58]} 5. Qa4 {[%clk 0:03:01]}  Bb7 {[%clk 0:02:51]} 6. Bg2 {[%clk 0:03:00]}  Be7 {[%clk 0:02:50]} 7. O-O {[%clk 0:03:00]}  O-O {[%clk 0:02:50]} 8. Nc3 {[%clk 0:03:00]}  d5 {[%clk 0:02:50]} 9. Ne5 {[%clk 0:02:58]}  c6 {[%clk 0:02:42]} 10. Rd1 {[%clk 0:02:56]}  a6 {[%clk 0:02:32]} 11. Qb3 {[%clk 0:02:35]}  b5 {[%clk 0:02:26]} 12. c5 {[%clk 0:02:22]}  a5 {[%clk 0:02:23]} 13. a3 {[%clk 0:02:10]}  Nbd7 {[%clk 0:02:21]} 14. Nxd7 {[%clk 0:02:02]}  Nxd7 {[%clk 0:02:17]} 15. e4 {[%clk 0:02:00]}  Rc8 {[%clk 0:01:48]} 16. e5 {[%clk 0:01:52]}  f5 {[%clk 0:01:24]} 17. exf6 {[%clk 0:01:36]}  Bxf6 {[%clk 0:01:16]} 18. f4 {[%clk 0:01:36]}  g5 {[%clk 0:01:01]} 19. Ne2 {[%clk 0:01:33]}  Qe7 {[%clk 0:00:57]} 20. Be3 {[%clk 0:01:23]}  Rce8 {[%clk 0:00:55]} 21. Qd3 {[%clk 0:01:18]}  gxf4 {[%clk 0:00:52]} 22. gxf4 {[%clk 0:01:18]}  Kh8 {[%clk 0:00:52]} 23. Kh1 {[%clk 0:01:16]}  Rg8 {[%clk 0:00:33]} 24. Rg1 {[%clk 0:01:13]}  Rg7 {[%clk 0:00:33]} 25. Bh3 {[%clk 0:01:07]}  Reg8 {[%clk 0:00:31]} 26. b4 {[%clk 0:01:05]}  axb4 {[%clk 0:00:26]} 27. axb4 {[%clk 0:01:05]}  Bc8 {[%clk 0:00:26]} 28. Ng3 {[%clk 0:00:55]}  Bh4 {[%clk 0:00:25]} 29. Nh5 {[%clk 0:00:51]}  Rxg1+ {[%clk 0:00:25]} 30. Rxg1 {[%clk 0:00:50]}  Rxg1+ {[%clk 0:00:25]} 31. Bxg1 {[%clk 0:00:49]}  Nf6 {[%clk 0:00:24]} 32. Nxf6 {[%clk 0:00:45]}  Qxf6 {[%clk 0:00:25]} 33. Be3 {[%clk 0:00:38]}  Bd7 {[%clk 0:00:25]} 34. Qe2 {[%clk 0:00:29]}  Be8 {[%clk 0:00:23]} 35. Qg4 {[%clk 0:00:29]}  Bf7 {[%clk 0:00:20]} 36. f5 {[%clk 0:00:20]}  exf5 {[%clk 0:00:04]} 37. Qxf5 {[%clk 0:00:21]}  Qe7 {[%clk 0:00:05]} 38. Qe5+ {[%clk 0:00:09]}  Qxe5 {[%clk 0:00:04]} 39. dxe5 {[%clk 0:00:10]}  Be8 {[%clk 0:00:02]} 40. Bd2 {[%clk 0:00:07]}  d4 {[%clk 0:00:02]} 41. Kg2 {[%clk 0:00:04]}  Bf7 {[%clk 0:00:03]} 42. e6 {[%clk 0:00:04]}  Bg6 {[%clk 0:00:03]} 43. Kf3 {[%clk 0:00:04]}  Kg7 {[%clk 0:00:03]} 44. Kg4 {[%clk 0:00:03]}  Be7 {[%clk 0:00:02]} 45. Bg2 {[%clk 0:00:03]}  Kf6 {[%clk 0:00:02]} 46. Bxc6 {[%clk 0:00:03]}  Kxe6 {[%clk 0:00:03]} 47. Bxb5 {[%clk 0:00:03]}  Kd5 {[%clk 0:00:03]} 48. Be2 {[%clk 0:00:04]}  d3 {[%clk 0:00:02]} 49. Bf3+ {[%clk 0:00:03]}  Kc4 {[%clk 0:00:03]} 50. c6 {[%clk 0:00:04]}  Bd6 {[%clk 0:00:03]} 51. Bf4 {[%clk 0:00:03]}  Bxf4 {[%clk 0:00:01]} 52. Kxf4 {[%clk 0:00:04]}  Be8 {[%clk 0:00:02]} 53. c7 {[%clk 0:00:04]}  Bd7 {[%clk 0:00:02]} 54. Ke3 {[%clk 0:00:04]}  Kxb4 {[%clk 0:00:02]} 55. Kxd3 {[%clk 0:00:04]}  Kc5 {[%clk 0:00:03]} 56. Bb7 {[%clk 0:00:04]}  Kd6 {[%clk 0:00:04]} 57. c8=Q {[%clk 0:00:05]}  Bxc8 {[%clk 0:00:04]} 58. Bxc8 {[%clk 0:00:05]}  Ke7 {[%clk 0:00:05]} 59. Ke4 {[%clk 0:00:06]}  Kf6 {[%clk 0:00:06]} 60. Kf4 {[%clk 0:00:06]}  Kg7 {[%clk 0:00:07]} 61. Kg5 {[%clk 0:00:06]}  Kh8 {[%clk 0:00:08]} 62. Kh6 {[%clk 0:00:06]}  Kg8 {[%clk 0:00:08]} 63. Be6+ {[%clk 0:00:06]}  Kh8 {[%clk 0:00:09]} 64. Bf5 {[%clk 0:00:06]}  Kg8 {[%clk 0:00:09]} 65. Kg5 {[%clk 0:00:07]}  Kh8 {[%clk 0:00:10]} 66. Kf6 {[%clk 0:00:07]}  h5 {[%clk 0:00:11]} 67. h4 {[%clk 0:00:02]}  Kg8 {[%clk 0:00:11]} 68. Kg6 {[%clk 0:00:03]}  Kh8 {[%clk 0:00:12]} 69. Kh6 {[%clk 0:00:04]}  Kg8 {[%clk 0:00:12]} 70. Kg5 {[%clk 0:00:04]}  Kh8 {[%clk 0:00:13]} 71. Bg6 {[%clk 0:00:05]}  Kg8 {[%clk 0:00:14]} 72. Kf6 {[%clk 0:00:05]}  Kh8 {[%clk 0:00:15]} 73. Bf7 {[%clk 0:00:05]}  Kh7 {[%clk 0:00:16]} 74. Ke7 {[%clk 0:00:05]}  Kh8 {[%clk 0:00:17]} 75. Ke8 {[%clk 0:00:06]}  Kg7 {[%clk 0:00:17]} 76. Ke7 {[%clk 0:00:06]}  Kh8 {[%clk 0:00:17]} 77. Kf8 {[%clk 0:00:06]}  Kh7 {[%clk 0:00:18]} 78. Be6 {[%clk 0:00:07]}  Kh8 {[%clk 0:00:18]} 79. Bh3 {[%clk 0:00:07]}  Kh7 {[%clk 0:00:19]} 80. Bg2 {[%clk 0:00:08]}  Kh8 {[%clk 0:00:20]} 81. Kf7 {[%clk 0:00:08]}  Kh7 {[%clk 0:00:20]} 82. Kf6 {[%clk 0:00:09]}  Kh8 {[%clk 0:00:21]} 83. Kg6 {[%clk 0:00:09]}  Kg8 {[%clk 0:00:22]} 84. Kh6 {[%clk 0:00:10]}  Kh8 {[%clk 0:00:23]} 85. Be4 {[%clk 0:00:10]}  Kg8 {[%clk 0:00:23]} 86. Bf5 {[%clk 0:00:10]}  Kh8 {[%clk 0:00:24]} 87. Bg6 {[%clk 0:00:10]}  Kg8 {[%clk 0:00:25]} 88. Be8 {[%clk 0:00:08]}  Kh8 {[%clk 0:00:26]} 89. Bc6 {[%clk 0:00:09]}  Kg8 {[%clk 0:00:26]} 90. Bb5 {[%clk 0:00:10]}  Kh8 {[%clk 0:00:27]} 91. Bd3 {[%clk 0:00:09]}  Kg8 {[%clk 0:00:27]} 92. Be4 {[%clk 0:00:10]}  Kh8 {[%clk 0:00:28]} 93. Kg5 {[%clk 0:00:11]}  Kg8 {[%clk 0:00:28]} 94. Kf5 {[%clk 0:00:11]}  Kh8 {[%clk 0:00:29]} 95. Kf6 {[%clk 0:00:12]}  Kg8 {[%clk 0:00:29]} 96. Bd5+ {[%clk 0:00:12]}  Kh8 {[%clk 0:00:30]} 97. Be6 {[%clk 0:00:13]}  Kh7 {[%clk 0:00:30]} 98. Kf7 {[%clk 0:00:14]}  Kh8 {[%clk 0:00:31]} 99. Kf8 {[%clk 0:00:15]}  Kh7 {[%clk 0:00:31]} 100. Bf7 {[%clk 0:00:14]}  Kh8 {[%clk 0:00:32]} 101. Be8 {[%clk 0:00:15]}  Kh7 {[%clk 0:00:32]} 102. Bd7 {[%clk 0:00:15]}  Kh8 {[%clk 0:00:33]} 103. Bc6 {[%clk 0:00:16]}  Kh7 {[%clk 0:00:34]} 104. Bb7 {[%clk 0:00:17]}  Kh8 {[%clk 0:00:35]} 105. Ba6 {[%clk 0:00:15]}  Kh7 {[%clk 0:00:36]} 106. Bb5 {[%clk 0:00:15]}  Kh8 {[%clk 0:00:37]} 107. Ba4 {[%clk 0:00:16]}  Kh7 {[%clk 0:00:37]} 108. Bc2+ {[%clk 0:00:16]}  Kh8 {[%clk 0:00:38]} 109. Bb1 {[%clk 0:00:17]} 1/2-1/2


[Site "https://www.chess.com"]

[Event "Titled Tuesday Blitz February 01 A 2022"]
[White "Urazayev, Arystanbek"]
[Black "Svane, Rasmus"]
[WhiteFideId "13709810"]
[BlackFideId "4657101"]
[WhiteElo "2321"]
[BlackElo "2645"]
[Result "0-1"]
[Round "07"]
[TimeControl "180+1"]
[Date "2022.02.01"]
[WhiteClock "0:00:04"]
[BlackClock "0:00:35"]

1. d4 {[%clk 0:03:00]}  d5 {[%clk 0:02:59]} 2. c4 {[%clk 0:03:01]}  e6 {[%clk 0:02:59]} 3. Nf3 {[%clk 0:03:02]}  a6 {[%clk 0:03:00]} 4. cxd5 {[%clk 0:02:59]}  exd5 {[%clk 0:03:01]} 5. Nc3 {[%clk 0:03:00]}  Nf6 {[%clk 0:03:01]} 6. Bg5 {[%clk 0:02:59]}  Be6 {[%clk 0:03:01]} 7. Bxf6 {[%clk 0:03:00]}  Qxf6 {[%clk 0:03:02]} 8. Qb3 {[%clk 0:03:00]}  Ra7 {[%clk 0:03:02]} 9. a3 {[%clk 0:03:00]}  Qd8 {[%clk 0:03:01]} 10. h4 {[%clk 0:02:57]}  Be7 {[%clk 0:02:59]} 11. g3 {[%clk 0:02:56]}  O-O {[%clk 0:02:54]} 12. Bh3 {[%clk 0:02:54]}  c5 {[%clk 0:02:50]} 13. Rd1 {[%clk 0:02:36]}  c4 {[%clk 0:02:38]} 14. Qc2 {[%clk 0:02:33]}  h6 {[%clk 0:02:28]} 15. Kf1 {[%clk 0:02:21]}  b5 {[%clk 0:02:19]} 16. e4 {[%clk 0:02:19]}  Bxh3+ {[%clk 0:02:14]} 17. Rxh3 {[%clk 0:02:20]}  dxe4 {[%clk 0:02:15]} 18. Qxe4 {[%clk 0:02:17]}  Re8 {[%clk 0:02:15]} 19. Qc2 {[%clk 0:02:01]}  Bf8 {[%clk 0:01:56]} 20. Kg2 {[%clk 0:01:58]}  Rd7 {[%clk 0:01:49]} 21. d5 {[%clk 0:01:40]}  Be7 {[%clk 0:01:23]} 22. Ne5 {[%clk 0:01:31]}  Rd6 {[%clk 0:01:23]} 23. Rhh1 {[%clk 0:01:30]}  Bf6 {[%clk 0:01:21]} 24. f4 {[%clk 0:00:45]}  Bxe5 {[%clk 0:01:09]} 25. fxe5 {[%clk 0:00:46]}  Rxe5 {[%clk 0:01:10]} 26. Rhe1 {[%clk 0:00:47]}  Rxe1 {[%clk 0:01:05]} 27. Rxe1 {[%clk 0:00:47]}  Nd7 {[%clk 0:01:06]} 28. Rd1 {[%clk 0:00:15]}  Nc5 {[%clk 0:01:04]} 29. Qf5 {[%clk 0:00:10]}  Rf6 {[%clk 0:00:57]} 30. Qg4 {[%clk 0:00:07]}  Rg6 {[%clk 0:00:49]} 31. Qf3 {[%clk 0:00:07]}  Nd3 {[%clk 0:00:45]} 32. Rd2 {[%clk 0:00:07]}  Qxh4 {[%clk 0:00:42]} 33. Qe3 {[%clk 0:00:03]}  Nf4+ {[%clk 0:00:35]} 34. Kf3 {[%clk 0:00:04]}  Rxg3+ {[%clk 0:00:35]} 0-1


[Site "https://www.chess.com"]

[Event "Titled Tuesday Blitz February 01 A 2022"]
[White "Willow, Jonah B"]
[Black "Liyanage, Ranindu Dilshan"]
[WhiteFideId "438804"]
[BlackFideId "9915834"]
[WhiteElo "2261"]
[BlackElo "1858"]
[Result "1-0"]
[Round "07"]
[TimeControl "180+1"]
[Date "2022.02.01"]
[WhiteClock "0:01:08"]
[BlackClock "0:00:24"]

1. e4 {[%clk 0:03:00]}  e6 {[%clk 0:02:58]} 2. d3 {[%clk 0:03:00]}  d5 {[%clk 0:02:58]} 3. Nd2 {[%clk 0:03:01]}  Nf6 {[%clk 0:02:58]} 4. g3 {[%clk 0:02:58]}  Be7 {[%clk 0:02:59]} 5. Bg2 {[%clk 0:02:58]}  O-O {[%clk 0:02:59]} 6. Ngf3 {[%clk 0:02:59]}  a5 {[%clk 0:03:00]} 7. O-O {[%clk 0:02:59]}  a4 {[%clk 0:03:01]} 8. a3 {[%clk 0:02:53]}  c5 {[%clk 0:03:00]} 9. Re1 {[%clk 0:02:51]}  Nc6 {[%clk 0:03:00]} 10. Qe2 {[%clk 0:02:51]}  Re8 {[%clk 0:02:54]} 11. h4 {[%clk 0:02:49]}  b5 {[%clk 0:02:43]} 12. e5 {[%clk 0:02:48]}  Nd7 {[%clk 0:02:43]} 13. Nf1 {[%clk 0:02:49]}  Qc7 {[%clk 0:02:31]} 14. h5 {[%clk 0:02:47]}  b4 {[%clk 0:02:28]} 15. Bf4 {[%clk 0:02:45]}  Ba6 {[%clk 0:02:27]} 16. Ne3 {[%clk 0:02:42]}  Nd4 {[%clk 0:02:09]} 17. Nxd4 {[%clk 0:02:41]}  cxd4 {[%clk 0:02:10]} 18. Nxd5 {[%clk 0:02:28]}  exd5 {[%clk 0:02:01]} 19. e6 {[%clk 0:02:29]}  Bd6 {[%clk 0:01:58]} 20. exf7+ {[%clk 0:02:25]}  Kxf7 {[%clk 0:01:55]} 21. Bxd5+ {[%clk 0:02:25]}  Kf8 {[%clk 0:01:53]} 22. Bxd6+ {[%clk 0:02:25]}  Qxd6 {[%clk 0:01:54]} 23. Qf3+ {[%clk 0:02:26]}  Nf6 {[%clk 0:01:47]} 24. Bxa8 {[%clk 0:02:25]}  Rb8 {[%clk 0:01:41]} 25. axb4 {[%clk 0:02:13]}  Rxb4 {[%clk 0:01:40]} 26. Bc6 {[%clk 0:02:13]}  Kg8 {[%clk 0:01:25]} 27. b3 {[%clk 0:01:55]}  a3 {[%clk 0:01:20]} 28. h6 {[%clk 0:01:44]}  Rb6 {[%clk 0:01:12]} 29. Be4 {[%clk 0:01:38]}  gxh6 {[%clk 0:01:12]} 30. Qf5 {[%clk 0:01:23]}  Rb5 {[%clk 0:01:06]} 31. Qf3 {[%clk 0:01:23]}  Rg5 {[%clk 0:01:02]} 32. b4 {[%clk 0:01:19]}  Bc8 {[%clk 0:00:49]} 33. Rxa3 {[%clk 0:01:17]}  Qxb4 {[%clk 0:00:46]} 34. Raa1 {[%clk 0:01:12]}  Qd6 {[%clk 0:00:33]} 35. Ra8 {[%clk 0:01:10]}  Rc5 {[%clk 0:00:24]} 36. Bb7 {[%clk 0:01:08]} 1-0


[Site "https://www.chess.com"]

[Event "Titled Tuesday Blitz February 01 A 2022"]
[White "Yeletsky, Ivan"]
[Black "Aradhya, Garg"]
[WhiteFideId "24180327"]
[BlackFideId "25006746"]
[WhiteElo "2348"]
[BlackElo "2169"]
[Result "0-1"]
[Round "07"]
[TimeControl "180+1"]
[Date "2022.02.01"]
[WhiteClock "0:00:03"]
[BlackClock "0:00:03"]

1. Nf3 {[%clk 0:03:00]}  d5 {[%clk 0:03:00]} 2. g3 {[%clk 0:02:57]}  c5 {[%clk 0:03:00]} 3. Bg2 {[%clk 0:02:56]}  Nc6 {[%clk 0:03:00]} 4. d4 {[%clk 0:02:56]}  g6 {[%clk 0:02:57]} 5. c4 {[%clk 0:02:54]}  Bg7 {[%clk 0:02:54]} 6. cxd5 {[%clk 0:02:40]}  Nxd4 {[%clk 0:02:52]} 7. O-O {[%clk 0:02:40]}  Bg4 {[%clk 0:02:46]} 8. Be3 {[%clk 0:02:34]}  Bxf3 {[%clk 0:02:45]} 9. exf3 {[%clk 0:02:34]}  Nh6 {[%clk 0:02:45]} 10. g4 {[%clk 0:02:29]}  Qxd5 {[%clk 0:02:35]} 11. Nc3 {[%clk 0:02:22]}  Qd7 {[%clk 0:02:33]} 12. Qd2 {[%clk 0:02:16]}  Ng8 {[%clk 0:02:23]} 13. Ne4 {[%clk 0:02:16]}  Rc8 {[%clk 0:02:20]} 14. b4 {[%clk 0:02:12]}  c4 {[%clk 0:01:47]} 15. Nc5 {[%clk 0:01:30]}  c3 {[%clk 0:01:25]} 16. Qd1 {[%clk 0:01:06]}  Qd8 {[%clk 0:00:45]} 17. Nxb7 {[%clk 0:00:52]}  Qb6 {[%clk 0:00:43]} 18. Nc5 {[%clk 0:00:43]}  Qxb4 {[%clk 0:00:42]} 19. Nd3 {[%clk 0:00:40]}  Qc4 {[%clk 0:00:40]} 20. Rc1 {[%clk 0:00:36]}  Nf6 {[%clk 0:00:32]} 21. Ne5 {[%clk 0:00:31]}  Ne2+ {[%clk 0:00:31]} 22. Kh1 {[%clk 0:00:31]}  Qb5 {[%clk 0:00:31]} 23. a4 {[%clk 0:00:19]}  Qxe5 {[%clk 0:00:28]} 24. Qxe2 {[%clk 0:00:19]}  O-O {[%clk 0:00:28]} 25. f4 {[%clk 0:00:19]}  Qa5 {[%clk 0:00:26]} 26. f5 {[%clk 0:00:17]}  gxf5 {[%clk 0:00:23]} 27. gxf5 {[%clk 0:00:16]}  Qxf5 {[%clk 0:00:21]} 28. Rg1 {[%clk 0:00:17]}  Kh8 {[%clk 0:00:21]} 29. Bxa7 {[%clk 0:00:16]}  Nd5 {[%clk 0:00:16]} 30. a5 {[%clk 0:00:10]}  Nf4 {[%clk 0:00:16]} 31. Qf3 {[%clk 0:00:10]}  e5 {[%clk 0:00:16]} 32. Be3 {[%clk 0:00:09]}  Ra8 {[%clk 0:00:14]} 33. Qxa8 {[%clk 0:00:07]}  Rxa8 {[%clk 0:00:14]} 34. Bxa8 {[%clk 0:00:08]}  Qc8 {[%clk 0:00:15]} 35. Bf3 {[%clk 0:00:06]}  Nd3 {[%clk 0:00:14]} 36. Rc2 {[%clk 0:00:06]}  f5 {[%clk 0:00:14]} 37. a6 {[%clk 0:00:04]}  Qxa6 {[%clk 0:00:13]} 38. Rxc3 {[%clk 0:00:04]}  e4 {[%clk 0:00:14]} 39. Rb3 {[%clk 0:00:03]}  Qc8 {[%clk 0:00:11]} 40. Bg2 {[%clk 0:00:03]}  f4 {[%clk 0:00:10]} 41. Rxd3 {[%clk 0:00:03]}  exd3 {[%clk 0:00:10]} 42. Bxf4 {[%clk 0:00:04]}  Qc2 {[%clk 0:00:08]} 43. Be3 {[%clk 0:00:02]}  d2 {[%clk 0:00:08]} 44. Bf3 {[%clk 0:00:03]}  Be5 {[%clk 0:00:06]} 45. Rd1 {[%clk 0:00:03]}  Qc3 {[%clk 0:00:06]} 46. Rxd2 {[%clk 0:00:03]}  Kg7 {[%clk 0:00:06]} 47. Kg2 {[%clk 0:00:03]}  Kf6 {[%clk 0:00:06]} 48. Rd5 {[%clk 0:00:04]}  Ke6 {[%clk 0:00:06]} 49. Rb5 {[%clk 0:00:04]}  Qc7 {[%clk 0:00:06]} 50. Rb6+ {[%clk 0:00:04]}  Kf7 {[%clk 0:00:05]} 51. Rh6 {[%clk 0:00:04]}  Kg7 {[%clk 0:00:05]} 52. Rh4 {[%clk 0:00:04]}  Bf6 {[%clk 0:00:05]} 53. Rg4+ {[%clk 0:00:04]}  Kf7 {[%clk 0:00:04]} 54. Bd5+ {[%clk 0:00:04]}  Ke7 {[%clk 0:00:05]} 55. Bf4 {[%clk 0:00:04]}  Qc5 {[%clk 0:00:04]} 56. Bf3 {[%clk 0:00:04]}  h5 {[%clk 0:00:03]} 57. Rg3 {[%clk 0:00:04]}  Qf5 {[%clk 0:00:03]} 58. Be3 {[%clk 0:00:05]}  h4 {[%clk 0:00:03]} 59. Rh3 {[%clk 0:00:05]}  Qg6+ {[%clk 0:00:03]} 60. Kf1 {[%clk 0:00:05]}  Qb1+ {[%clk 0:00:04]} 61. Kg2 {[%clk 0:00:05]}  Qg6+ {[%clk 0:00:04]} 62. Kf1 {[%clk 0:00:04]}  Qd3+ {[%clk 0:00:05]} 63. Be2 {[%clk 0:00:03]}  Qb1+ {[%clk 0:00:05]} 64. Kg2 {[%clk 0:00:04]}  Qe4+ {[%clk 0:00:05]} 65. Rf3 {[%clk 0:00:03]}  Qg6+ {[%clk 0:00:05]} 66. Kf1 {[%clk 0:00:03]}  Qb1+ {[%clk 0:00:06]} 67. Kg2 {[%clk 0:00:04]}  Qg6+ {[%clk 0:00:06]} 68. Kh3 {[%clk 0:00:05]}  Qf7 {[%clk 0:00:06]} 69. Rf4 {[%clk 0:00:05]}  Qe6+ {[%clk 0:00:06]} 70. Bg4 {[%clk 0:00:05]}  Qd5 {[%clk 0:00:06]} 71. Rxf6 {[%clk 0:00:03]}  Kxf6 {[%clk 0:00:06]} 72. Kxh4 {[%clk 0:00:04]}  Qg2 {[%clk 0:00:06]} 73. h3 {[%clk 0:00:05]}  Qc6 {[%clk 0:00:06]} 74. Bg5+ {[%clk 0:00:05]}  Kg7 {[%clk 0:00:06]} 75. f4 {[%clk 0:00:06]}  Qc1 {[%clk 0:00:06]} 76. f5 {[%clk 0:00:05]}  Qc4 {[%clk 0:00:06]} 77. Kh5 {[%clk 0:00:03]}  Qf7+ {[%clk 0:00:06]} 78. Kh4 {[%clk 0:00:04]}  Qf8 {[%clk 0:00:06]} 79. f6+ {[%clk 0:00:04]}  Kg6 {[%clk 0:00:07]} 80. Bh5+ {[%clk 0:00:03]}  Kf5 {[%clk 0:00:07]} 81. f7 {[%clk 0:00:04]}  Qb4+ {[%clk 0:00:05]} 82. Bg4+ {[%clk 0:00:05]}  Kg6 {[%clk 0:00:06]} 83. f8=Q {[%clk 0:00:03]}  Qxf8 {[%clk 0:00:05]} 84. Bh5+ {[%clk 0:00:04]}  Kg7 {[%clk 0:00:05]} 85. Bg4 {[%clk 0:00:04]}  Qh8+ {[%clk 0:00:04]} 86. Kg3 {[%clk 0:00:05]}  Kg6 {[%clk 0:00:03]} 87. h4 {[%clk 0:00:04]}  Qc3+ {[%clk 0:00:03]} 88. Kf4 {[%clk 0:00:05]}  Qd4+ {[%clk 0:00:03]} 89. Kf3 {[%clk 0:00:05]}  Qd5+ {[%clk 0:00:03]} 90. Kg3 {[%clk 0:00:05]}  Qe5+ {[%clk 0:00:03]} 91. Bf4 {[%clk 0:00:05]}  Qc3+ {[%clk 0:00:03]} 92. Bf3 {[%clk 0:00:05]}  Kf5 {[%clk 0:00:04]} 93. Bg5 {[%clk 0:00:04]}  Qe5+ {[%clk 0:00:04]} 94. Kg2 {[%clk 0:00:05]}  Qd4 {[%clk 0:00:04]} 95. Kg3 {[%clk 0:00:05]}  Qg1+ {[%clk 0:00:04]} 96. Kh3 {[%clk 0:00:04]}  Ke5 {[%clk 0:00:04]} 97. Bg2 {[%clk 0:00:03]}  Kd4 {[%clk 0:00:04]} 98. Kg3 {[%clk 0:00:04]}  Kd3 {[%clk 0:00:04]} 99. Kf3 {[%clk 0:00:05]}  Qd1+ {[%clk 0:00:02]} 100. Kf4 {[%clk 0:00:05]}  Qd2+ {[%clk 0:00:02]} 101. Kg3 {[%clk 0:00:05]}  Qe1+ {[%clk 0:00:03]} 102. Kg4 {[%clk 0:00:05]}  Qe2+ {[%clk 0:00:03]} 103. Bf3 {[%clk 0:00:06]}  Qf1 {[%clk 0:00:03]} 104. h5 {[%clk 0:00:05]}  Kd4 {[%clk 0:00:03]} 105. h6 {[%clk 0:00:04]}  Qg1+ {[%clk 0:00:04]} 106. Kf4 {[%clk 0:00:05]}  Qh2+ {[%clk 0:00:04]} 107. Kf5 {[%clk 0:00:04]}  Qh3+ {[%clk 0:00:04]} 108. Bg4 {[%clk 0:00:05]}  Qd3+ {[%clk 0:00:04]} 109. Kf6 {[%clk 0:00:05]}  Kd5 {[%clk 0:00:05]} 110. Bf5 {[%clk 0:00:05]}  Qd4+ {[%clk 0:00:05]} 111. Kg6 {[%clk 0:00:05]}  Qh8 {[%clk 0:00:05]} 112. h7 {[%clk 0:00:05]}  Ke5 {[%clk 0:00:04]} 113. Bg4 {[%clk 0:00:02]}  Qe8+ {[%clk 0:00:04]} 114. Kh6 {[%clk 0:00:03]}  Qf8+ {[%clk 0:00:04]} 115. Kh5 {[%clk 0:00:03]}  Qf7+ {[%clk 0:00:05]} 116. Kh6 {[%clk 0:00:03]}  Qf8+ {[%clk 0:00:05]} 117. Kg6 {[%clk 0:00:03]}  Qh8 {[%clk 0:00:05]} 118. Bh6 {[%clk 0:00:03]}  Qe8+ {[%clk 0:00:05]} 119. Kg7 {[%clk 0:00:03]}  Qe7+ {[%clk 0:00:05]} 120. Kg8 {[%clk 0:00:04]}  Qe8+ {[%clk 0:00:06]} 121. Bf8 {[%clk 0:00:04]}  Qg6+ {[%clk 0:00:04]} 122. Bg7+ {[%clk 0:00:05]}  Kf4 {[%clk 0:00:04]} 123. Bd7 {[%clk 0:00:03]}  Qd6 {[%clk 0:00:03]} 124. Be8 {[%clk 0:00:02]}  Qe6+ {[%clk 0:00:03]} 125. Bf7 {[%clk 0:00:03]}  Qc8+ {[%clk 0:00:03]} 126. Bf8 {[%clk 0:00:04]}  Qg4+ {[%clk 0:00:03]} 127. Kh8 {[%clk 0:00:03]}  Kf5 {[%clk 0:00:03]} 128. Bg8 {[%clk 0:00:02]}  Kf6 {[%clk 0:00:03]} 129. Bg7+ {[%clk 0:00:03]}  Qxg7# {[%clk 0:00:03]} 0-1


[Site "https://www.chess.com"]

[Event "Titled Tuesday Blitz February 01 A 2022"]
[White "Bacrot, Etienne"]
[Black "Abdrlauf, Elham"]
[WhiteFideId "605506"]
[BlackFideId "1533533"]
[WhiteElo "2859"]
[BlackElo "2949"]
[Result "0-1"]
[Round "08"]
[TimeControl "180+1"]
[Date "2022.02.01"]
[WhiteClock "0:00:02"]
[BlackClock "0:00:04"]

1. Nf3 {[%clk 0:03:00]}  Nf6 {[%clk 0:02:59]} 2. g3 {[%clk 0:03:01]}  g6 {[%clk 0:03:00]} 3. Bg2 {[%clk 0:03:01]}  Bg7 {[%clk 0:03:00]} 4. c4 {[%clk 0:03:01]}  c5 {[%clk 0:03:01]} 5. Nc3 {[%clk 0:03:01]}  Nc6 {[%clk 0:03:01]} 6. d4 {[%clk 0:03:01]}  d5 {[%clk 0:03:01]} 7. dxc5 {[%clk 0:03:00]}  d4 {[%clk 0:02:55]} 8. Nb5 {[%clk 0:03:00]}  Ne4 {[%clk 0:02:54]} 9. O-O {[%clk 0:02:41]}  Nxc5 {[%clk 0:02:34]} 10. b4 {[%clk 0:02:33]}  Ne6 {[%clk 0:02:27]} 11. Bb2 {[%clk 0:02:22]}  a6 {[%clk 0:02:25]} 12. Na3 {[%clk 0:02:22]}  Nxb4 {[%clk 0:02:15]} 13. e3 {[%clk 0:01:48]}  Nc6 {[%clk 0:02:06]} 14. exd4 {[%clk 0:01:45]}  Nexd4 {[%clk 0:02:00]} 15. Nxd4 {[%clk 0:01:45]}  Nxd4 {[%clk 0:01:59]} 16. Nc2 {[%clk 0:01:26]}  Nf5 {[%clk 0:01:16]} 17. Bxg7 {[%clk 0:01:11]}  Nxg7 {[%clk 0:01:07]} 18. Rb1 {[%clk 0:01:11]}  Qc7 {[%clk 0:01:03]} 19. Ne3 {[%clk 0:01:08]}  O-O {[%clk 0:00:51]} 20. Nd5 {[%clk 0:01:07]}  Qc5 {[%clk 0:00:51]} 21. Re1 {[%clk 0:01:02]}  Ne6 {[%clk 0:00:46]} 22. Nb6 {[%clk 0:00:53]}  Rb8 {[%clk 0:00:44]} 23. Qd5 {[%clk 0:00:53]}  Rd8 {[%clk 0:00:36]} 24. Qxc5 {[%clk 0:00:35]}  Nxc5 {[%clk 0:00:37]} 25. Rxe7 {[%clk 0:00:35]}  Bf5 {[%clk 0:00:38]} 26. Ra1 {[%clk 0:00:33]}  Rd6 {[%clk 0:00:23]} 27. Nd5 {[%clk 0:00:33]}  Bd3 {[%clk 0:00:10]} 28. Rc7 {[%clk 0:00:17]}  Ne6 {[%clk 0:00:11]} 29. Nf6+ {[%clk 0:00:12]}  Kg7 {[%clk 0:00:07]} 30. Rxb7 {[%clk 0:00:12]}  Rbd8 {[%clk 0:00:05]} 31. Ng4 {[%clk 0:00:07]}  Bxc4 {[%clk 0:00:04]} 32. Ne3 {[%clk 0:00:06]}  Bb5 {[%clk 0:00:03]} 33. a4 {[%clk 0:00:05]}  Bc6 {[%clk 0:00:04]} 34. Bxc6 {[%clk 0:00:04]}  Rxc6 {[%clk 0:00:05]} 35. a5 {[%clk 0:00:04]}  Nc5 {[%clk 0:00:03]} 36. Rb6 {[%clk 0:00:05]}  Rdd6 {[%clk 0:00:04]} 37. Rab1 {[%clk 0:00:04]}  Na4 {[%clk 0:00:04]} 38. Rb7 {[%clk 0:00:04]}  Nc3 {[%clk 0:00:03]} 39. R1b3 {[%clk 0:00:04]}  Ne2+ {[%clk 0:00:03]} 40. Kg2 {[%clk 0:00:04]}  Nd4 {[%clk 0:00:04]} 41. R3b6 {[%clk 0:00:04]}  Re6 {[%clk 0:00:03]} 42. Nd5 {[%clk 0:00:03]}  Re5 {[%clk 0:00:03]} 43. Nb4 {[%clk 0:00:02]}  Rce6 {[%clk 0:00:04]} 0-1


[Site "https://www.chess.com"]